[Event "*** Titled Tuesday Blitz"]
[Site "Chess.com"]
[Date "2020.02.04"]
[Round "5"]
[White "almaguerjm"]
[Black "vovachesss"]
[Result "0-1"]
[WhiteElo "2408"]
[BlackElo "2570"]
[TimeControl "180+2"]
[EndTime "14:07:53 PST"]
[Termination "vovachesss won by checkmate"]

1. d4 {[%clk 0:03:01.9]} 1... Nf6 {[%clk 0:02:55.5]} 2. Nf3 {[%clk 0:03:02.1]}
2... b6 {[%clk 0:02:55.1]} 3. c4 {[%clk 0:03:02.4]} 3... Bb7 {[%clk 0:02:57]} 4.
Nc3 {[%clk 0:03:01.8]} 4... e6 {[%clk 0:02:58.3]} 5. a3 {[%clk 0:03:01.8]} 5...
d5 {[%clk 0:02:59.4]} 6. Bg5 {[%clk 0:03:01.7]} 6... Nbd7 {[%clk 0:03:00.7]} 7.
e3 {[%clk 0:03:01.2]} 7... Be7 {[%clk 0:03:02.3]} 8. Qc2 {[%clk 0:02:55.9]} 8...
O-O {[%clk 0:03:03.3]} 9. cxd5 {[%clk 0:02:57]} 9... exd5 {[%clk 0:03:03.4]} 10.
Bd3 {[%clk 0:02:51.9]} 10... c5 {[%clk 0:03:04.3]} 11. O-O {[%clk 0:02:49.5]}
11... Rc8 {[%clk 0:03:04.5]} 12. Rac1 {[%clk 0:02:49.5]} 12... h6 {[%clk
0:03:05.3]} 13. Bh4 {[%clk 0:02:49.7]} 13... Re8 {[%clk 0:03:04.7]} 14. Bb5
{[%clk 0:02:46.9]} 14... a6 {[%clk 0:02:57.5]} 15. Bxf6 {[%clk 0:02:35.9]} 15...
Bxf6 {[%clk 0:02:48.3]} 16. Bd3 {[%clk 0:02:34.6]} 16... Nf8 {[%clk 0:02:27.9]}
17. Bf5 {[%clk 0:02:30.6]} 17... Rc7 {[%clk 0:02:28.7]} 18. Qb3 {[%clk
0:02:30.1]} 18... Qd6 {[%clk 0:02:13.2]} 19. dxc5 {[%clk 0:02:24.1]} 19... bxc5
{[%clk 0:02:08.3]} 20. Rfd1 {[%clk 0:02:25]} 20... d4 {[%clk 0:02:02.8]} 21.
exd4 {[%clk 0:02:12.7]} 21... Bxf3 {[%clk 0:01:51]} 22. gxf3 {[%clk 0:02:13.1]}
22... Bxd4 {[%clk 0:01:37.9]} 23. Ne4 {[%clk 0:02:02.5]} 23... Qf4 {[%clk
0:01:30.7]} 24. Ng3 {[%clk 0:01:55.3]} 24... Rce7 {[%clk 0:01:17.4]} 25. Be4
{[%clk 0:01:54.5]} 25... Ne6 {[%clk 0:01:07]} 26. Bc6 {[%clk 0:01:38.1]} 26...
Rb8 {[%clk 0:01:05.5]} 27. Qa4 {[%clk 0:01:27.2]} 27... Rxb2 {[%clk 0:01:02]}
28. Rc2 {[%clk 0:01:27.4]} 28... Reb7 {[%clk 0:00:32.8]} 29. Kg2 {[%clk
0:01:16.5]} 29... Rxc2 {[%clk 0:00:30.4]} 30. Qxc2 {[%clk 0:00:52.5]} 30... Rb2
{[%clk 0:00:30.9]} 31. Qf5 {[%clk 0:00:53.5]} 31... Rxf2+ {[%clk 0:00:30.6]} 32.
Kh1 {[%clk 0:00:54.6]} 32... Qh4 {[%clk 0:00:22.3]} 33. Nf1 {[%clk 0:00:48.5]}
33... g6 {[%clk 0:00:16]} 34. Qg4 {[%clk 0:00:44.5]} 34... Qf6 {[%clk
0:00:12.2]} 35. Nd2 {[%clk 0:00:41.9]} 35... h5 {[%clk 0:00:11.9]} 36. Qg3
{[%clk 0:00:38.5]} 36... h4 {[%clk 0:00:09.7]} 37. Qg4 {[%clk 0:00:39.6]} 37...
Re2 {[%clk 0:00:09.4]} 38. Ne4 {[%clk 0:00:40]} 38... Qe5 {[%clk 0:00:10.8]} 39.
Qxh4 {[%clk 0:00:31.1]} 39... Nf4 {[%clk 0:00:11.9]} 40. Ng5 {[%clk 0:00:26.4]}
40... Nh5 {[%clk 0:00:09.3]} 41. Be4 {[%clk 0:00:26]} 41... Kg7 {[%clk
0:00:07.6]} 42. Bd3 {[%clk 0:00:19.1]} 42... Rb2 {[%clk 0:00:04.6]} 43. Re1
{[%clk 0:00:16.8]} 43... Qf4 {[%clk 0:00:04.7]} 44. Qxf4 {[%clk 0:00:11.8]}
44... Nxf4 {[%clk 0:00:06.6]} 45. Bc4 {[%clk 0:00:12.9]} 45... f6 {[%clk
0:00:03.5]} 46. Re7+ {[%clk 0:00:12.8]} 46... Kh6 {[%clk 0:00:03.9]} 47. Nf7+
{[%clk 0:00:12.8]} 47... Kh5 {[%clk 0:00:05.3]} 48. Re1 {[%clk 0:00:13.8]} 48...
Nh3 {[%clk 0:00:05]} 49. Re2 {[%clk 0:00:11.3]} 49... Rb1+ {[%clk 0:00:04.6]}
50. Kg2 {[%clk 0:00:12.7]} 50... Nf4+ {[%clk 0:00:05.7]} 51. Kg3 {[%clk
0:00:14.3]} 51... g5 {[%clk 0:00:04.5]} 52. h4 {[%clk 0:00:04]} 52... Rg1+
{[%clk 0:00:05.1]} 53. Kh2 {[%clk 0:00:04.4]} 53... Kxh4 {[%clk 0:00:04.3]} 54.
Rd2 {[%clk 0:00:04.4]} 54... Rc1 {[%clk 0:00:03.3]} 55. Bd3 {[%clk 0:00:02.9]}
55... Bg1+ {[%clk 0:00:04.8]} 56. Kh1 {[%clk 0:00:04.2]} 56... Bf2+ {[%clk
0:00:06.5]} 57. Kh2 {[%clk 0:00:05.1]} 57... Bg3# {[%clk 0:00:08.1]} 0-1

[Event "*** Titled Tuesday Blitz"]
[Site "Chess.com"]
[Date "2020.02.04"]
[Round "5"]
[White "DanielDardha2005"]
[Black "AntonSmirnov"]
[Result "1/2-1/2"]
[WhiteElo "2666"]
[BlackElo "2891"]
[TimeControl "180+2"]
[EndTime "14:08:10 PST"]
[Termination "Game drawn by repetition"]

1. Nf3 {[%clk 0:03:01.9]} 1... d5 {[%clk 0:02:58.4]} 2. c4 {[%clk 0:03:02.3]}
2... d4 {[%clk 0:02:56.9]} 3. b4 {[%clk 0:03:02.7]} 3... f6 {[%clk 0:02:56.9]}
4. e3 {[%clk 0:03:02.7]} 4... e5 {[%clk 0:02:48.5]} 5. c5 {[%clk 0:03:03.3]}
5... a5 {[%clk 0:02:48.6]} 6. Qa4+ {[%clk 0:03:02.8]} 6... Bd7 {[%clk
0:02:42.5]} 7. b5 {[%clk 0:03:00.3]} 7... Bxc5 {[%clk 0:02:42]} 8. Bc4 {[%clk
0:03:01.8]} 8... Ne7 {[%clk 0:02:40.9]} 9. exd4 {[%clk 0:02:59.5]} 9... exd4
{[%clk 0:02:41.7]} 10. O-O {[%clk 0:03:00.3]} 10... Bg4 {[%clk 0:02:38.6]} 11.
Qb3 {[%clk 0:02:58.5]} 11... a4 {[%clk 0:02:36.7]} 12. Qd3 {[%clk 0:02:59.1]}
12... Nd7 {[%clk 0:02:33.4]} 13. Re1 {[%clk 0:02:49]} 13... Nb6 {[%clk
0:02:25.7]} 14. Ba3 {[%clk 0:02:37.5]} 14... Qd6 {[%clk 0:02:21]} 15. Bxc5
{[%clk 0:02:26.7]} 15... Qxc5 {[%clk 0:02:22.9]} 16. Be6 {[%clk 0:02:11.6]}
16... Bxe6 {[%clk 0:02:22.2]} 17. Rxe6 {[%clk 0:02:13.5]} 17... Kf7 {[%clk
0:02:22.7]} 18. Re1 {[%clk 0:02:08.6]} 18... Rhe8 {[%clk 0:01:59.3]} 19. Na3
{[%clk 0:01:58.7]} 19... Ng6 {[%clk 0:01:30]} 20. Nc2 {[%clk 0:01:41.3]} 20...
Nf4 {[%clk 0:01:24.9]} 21. Qxd4 {[%clk 0:01:40.4]} 21... Qxd4 {[%clk 0:01:21.8]}
22. Ncxd4 {[%clk 0:01:39.5]} 22... Rxe1+ {[%clk 0:01:20.3]} 23. Rxe1 {[%clk
0:01:41.4]} 23... Re8 {[%clk 0:01:21]} 24. Rc1 {[%clk 0:01:38.9]} 24... Nbd5
{[%clk 0:01:17.7]} 25. g3 {[%clk 0:01:33]} 25... Nd3 {[%clk 0:01:16.6]} 26. Rc4
{[%clk 0:01:30.4]} 26... Ra8 {[%clk 0:01:06.9]} 27. Kf1 {[%clk 0:01:23.4]} 27...
a3 {[%clk 0:01:06.4]} 28. Nc2 {[%clk 0:01:11.1]} 28... Nb2 {[%clk 0:01:04.3]}
29. Rc5 {[%clk 0:01:01]} 29... Ke6 {[%clk 0:01:02.5]} 30. Nfd4+ {[%clk
0:00:53.6]} 30... Kd6 {[%clk 0:01:01.9]} 31. Nb3 {[%clk 0:00:55.5]} 31... Ra4
{[%clk 0:00:47.4]} 32. Ke2 {[%clk 0:00:33.4]} 32... Nc4 {[%clk 0:00:32.9]} 33.
Ne3 {[%clk 0:00:21.8]} 33... Ncxe3 {[%clk 0:00:23]} 34. fxe3 {[%clk 0:00:21.3]}
34... h5 {[%clk 0:00:19.7]} 35. Rc1 {[%clk 0:00:20.2]} 35... h4 {[%clk
0:00:20.4]} 36. Nd4 {[%clk 0:00:19.1]} 36... hxg3 {[%clk 0:00:20.1]} 37. hxg3
{[%clk 0:00:21]} 37... g6 {[%clk 0:00:21.4]} 38. g4 {[%clk 0:00:20.7]} 38... Rb4
{[%clk 0:00:20.7]} 39. Rc2 {[%clk 0:00:17.2]} 39... Rb2 {[%clk 0:00:21]} 40. Kd1
{[%clk 0:00:17.9]} 40... Nb4 {[%clk 0:00:21.8]} 41. Rc4 {[%clk 0:00:18.8]} 41...
Nxa2 {[%clk 0:00:20.2]} 42. Ra4 {[%clk 0:00:19.8]} 42... Kc5 {[%clk 0:00:18.1]}
43. Rxa3 {[%clk 0:00:20.3]} 43... Nb4 {[%clk 0:00:17.7]} 44. Rc3+ {[%clk
0:00:20.9]} 44... Kd6 {[%clk 0:00:18.4]} 45. Ke2 {[%clk 0:00:22.8]} 45... Nd5
{[%clk 0:00:17.8]} 46. Ra3 {[%clk 0:00:23.5]} 46... Kd7 {[%clk 0:00:15.3]} 47.
Ra7 {[%clk 0:00:23.6]} 47... b6 {[%clk 0:00:14.1]} 48. Ra8 {[%clk 0:00:23.6]}
48... Nc3+ {[%clk 0:00:15.1]} 49. Kd3 {[%clk 0:00:21.9]} 49... Nxb5 {[%clk
0:00:16.5]} 50. Ne2 {[%clk 0:00:22.4]} 50... Nd6 {[%clk 0:00:16.6]} 51. Nf4
{[%clk 0:00:23.1]} 51... g5 {[%clk 0:00:16.4]} 52. Nd5 {[%clk 0:00:24.2]} 52...
Ne8 {[%clk 0:00:17]} 53. Kc3 {[%clk 0:00:20.6]} 53... Rb1 {[%clk 0:00:17.8]} 54.
d4 {[%clk 0:00:20.8]} 54... Rg1 {[%clk 0:00:17.9]} 55. e4 {[%clk 0:00:22.3]}
55... Rg3+ {[%clk 0:00:18.3]} 56. Kc4 {[%clk 0:00:23]} 56... Nd6+ {[%clk
0:00:19.3]} 57. Kb4 {[%clk 0:00:23.9]} 57... Nxe4 {[%clk 0:00:20.8]} 58. Ra7
{[%clk 0:00:24.9]} 58... Rxg4 {[%clk 0:00:20.4]} 59. Nxc7 {[%clk 0:00:25.9]}
59... Nd6 {[%clk 0:00:18.6]} 60. Nb5+ {[%clk 0:00:24]} 60... Ke6 {[%clk
0:00:17.9]} 61. Nc7+ {[%clk 0:00:23.7]} 61... Kf5 {[%clk 0:00:17.5]} 62. Kc3
{[%clk 0:00:24]} 62... Rg3+ {[%clk 0:00:14.8]} 63. Kd2 {[%clk 0:00:24.6]} 63...
Ke4 {[%clk 0:00:15.7]} 64. d5 {[%clk 0:00:25]} 64... Nc4+ {[%clk 0:00:15.6]} 65.
Kc2 {[%clk 0:00:25.3]} 65... Ne3+ {[%clk 0:00:16.7]} 66. Kd2 {[%clk 0:00:23.3]}
66... Nxd5 {[%clk 0:00:14.9]} 67. Ne8 {[%clk 0:00:24.6]} 67... Rg2+ {[%clk
0:00:15.5]} 68. Kc1 {[%clk 0:00:26]} 68... Kd3 {[%clk 0:00:16.4]} 69. Rd7 {[%clk
0:00:27.3]} 69... Kc4 {[%clk 0:00:17.3]} 70. Nd6+ {[%clk 0:00:27.9]} 70... Kc3
{[%clk 0:00:18.4]} 71. Ne4+ {[%clk 0:00:27.9]} 71... Kc4 {[%clk 0:00:19.9]} 72.
Nd6+ {[%clk 0:00:28.8]} 72... Kc5 {[%clk 0:00:19.9]} 73. Ne4+ {[%clk 0:00:29.6]}
73... Kc4 {[%clk 0:00:20.2]} 74. Nd6+ {[%clk 0:00:30.9]} 1/2-1/2

[Event "*** Titled Tuesday Blitz"]
[Site "Chess.com"]
[Date "2020.02.04"]
[Round "5"]
[White "SARGISMV"]
[Black "AleksanderHnydiuk"]
[Result "1-0"]
[WhiteElo "2405"]
[BlackElo "2546"]
[TimeControl "180+2"]
[EndTime "14:08:12 PST"]
[Termination "SARGISMV won by resignation"]

1. d4 {[%clk 0:03:00.9]} 1... Nf6 {[%clk 0:03:00.4]} 2. c4 {[%clk 0:02:57.9]}
2... e6 {[%clk 0:03:01.6]} 3. Nc3 {[%clk 0:02:57.8]} 3... Bb4 {[%clk 0:03:02.4]}
4. e3 {[%clk 0:02:57.9]} 4... O-O {[%clk 0:03:02.7]} 5. Nf3 {[%clk 0:02:57.9]}
5... c5 {[%clk 0:03:03.4]} 6. d5 {[%clk 0:02:55.8]} 6... b5 {[%clk 0:02:55.6]}
7. Bd2 {[%clk 0:02:32.6]} 7... bxc4 {[%clk 0:02:48.2]} 8. Bxc4 {[%clk
0:02:15.2]} 8... Bb7 {[%clk 0:02:49]} 9. dxe6 {[%clk 0:01:53.9]} 9... fxe6
{[%clk 0:02:50.9]} 10. a3 {[%clk 0:01:55.8]} 10... Bxc3 {[%clk 0:02:39]} 11.
Bxc3 {[%clk 0:01:57.7]} 11... Ne4 {[%clk 0:02:38.1]} 12. Rc1 {[%clk 0:01:51.4]}
12... Nxc3 {[%clk 0:02:31.4]} 13. Rxc3 {[%clk 0:01:51.5]} 13... Bxf3 {[%clk
0:02:31.3]} 14. gxf3 {[%clk 0:01:51.3]} 14... d5 {[%clk 0:02:32.7]} 15. Be2
{[%clk 0:01:44.2]} 15... Nd7 {[%clk 0:02:32.5]} 16. h4 {[%clk 0:01:35.9]} 16...
Rb8 {[%clk 0:02:30.9]} 17. Qc2 {[%clk 0:01:21.1]} 17... Qb6 {[%clk 0:02:27.4]}
18. b3 {[%clk 0:01:18.2]} 18... Ne5 {[%clk 0:02:20.5]} 19. f4 {[%clk 0:01:17.1]}
19... d4 {[%clk 0:02:14.6]} 20. Rxc5 {[%clk 0:00:57.5]} 20... d3 {[%clk
0:02:13.4]} 21. Qc3 {[%clk 0:00:58]} 21... dxe2 {[%clk 0:01:04.1]} 22. fxe5
{[%clk 0:00:28]} 22... Qb7 {[%clk 0:00:52.1]} 23. Rh2 {[%clk 0:00:19.1]} 23...
Rbd8 {[%clk 0:00:46.8]} 24. Rc6 {[%clk 0:00:17.2]} 24... Qb5 {[%clk 0:00:41.4]}
25. Qc4 {[%clk 0:00:17.7]} 25... Qxe5 {[%clk 0:00:41.8]} 26. Qxe6+ {[%clk
0:00:14.1]} 26... Qxe6 {[%clk 0:00:42.8]} 27. Rxe6 {[%clk 0:00:16]} 27... Rd3
{[%clk 0:00:43.4]} 28. Kxe2 {[%clk 0:00:15.9]} 28... Rxb3 {[%clk 0:00:44.2]} 29.
Ra6 {[%clk 0:00:16]} 29... Rf7 {[%clk 0:00:45.3]} 30. Rg2 {[%clk 0:00:16.3]}
30... Rd7 {[%clk 0:00:45.5]} 31. Kf3 {[%clk 0:00:16.9]} 31... Kf8 {[%clk
0:00:42.7]} 32. Rg4 {[%clk 0:00:17.9]} 32... Ke8 {[%clk 0:00:37.3]} 33. Rga4
{[%clk 0:00:18.3]} 33... Rf7+ {[%clk 0:00:35.1]} 34. Kg3 {[%clk 0:00:19]} 34...
Rb2 {[%clk 0:00:35.7]} 35. Rf4 {[%clk 0:00:19.8]} 35... Rxf4 {[%clk 0:00:33.6]}
36. exf4 {[%clk 0:00:19.4]} 36... Rb3+ {[%clk 0:00:34.2]} 37. Kg4 {[%clk
0:00:20.1]} 37... Rb7 {[%clk 0:00:35.2]} 38. Kf5 {[%clk 0:00:21.2]} 38... Kf7
{[%clk 0:00:36.2]} 39. Ke5 {[%clk 0:00:22.1]} 39... Rb5+ {[%clk 0:00:36.7]} 40.
Ke4 {[%clk 0:00:22.8]} 40... Rb7 {[%clk 0:00:37.4]} 41. h5 {[%clk 0:00:23.9]}
41... h6 {[%clk 0:00:37.8]} 42. f5 {[%clk 0:00:24.8]} 42... Rc7 {[%clk
0:00:37.8]} 43. f4 {[%clk 0:00:24.4]} 43... Rd7 {[%clk 0:00:38.6]} 44. Ke5
{[%clk 0:00:25.4]} 44... Ke7 {[%clk 0:00:38.3]} 45. f6+ {[%clk 0:00:25.5]} 45...
gxf6+ {[%clk 0:00:38.8]} 46. Rxf6 {[%clk 0:00:25.1]} 46... Rd3 {[%clk 0:00:39]}
47. Ra6 {[%clk 0:00:22.1]} 47... Re3+ {[%clk 0:00:34]} 48. Kf5 {[%clk
0:00:22.7]} 48... Kf8 {[%clk 0:00:31.2]} 49. Rxa7 {[%clk 0:00:19.8]} 49... Rg3
{[%clk 0:00:31.4]} 50. Kf6 {[%clk 0:00:20]} 50... Ke8 {[%clk 0:00:29.3]} 51. a4
{[%clk 0:00:20.5]} 51... Rg4 {[%clk 0:00:29.4]} 52. Kf5 {[%clk 0:00:19.3]} 52...
Rg3 {[%clk 0:00:29.4]} 53. Rh7 {[%clk 0:00:19.7]} 53... Ra3 {[%clk 0:00:28.7]}
54. Ra7 {[%clk 0:00:20.5]} 54... Rg3 {[%clk 0:00:27.6]} 55. a5 {[%clk 0:00:21]}
55... Rf3 {[%clk 0:00:22]} 56. a6 {[%clk 0:00:21.7]} 56... Kf8 {[%clk
0:00:22.2]} 57. Kf6 {[%clk 0:00:21.8]} 57... Ke8 {[%clk 0:00:19.9]} 58. f5
{[%clk 0:00:22.2]} 58... Ra3 {[%clk 0:00:20.4]} 59. Kg6 {[%clk 0:00:22.9]} 59...
Ra5 {[%clk 0:00:17.4]} 60. f6 {[%clk 0:00:21.8]} 60... Ra4 {[%clk 0:00:16]} 61.
f7+ {[%clk 0:00:21.5]} 1-0

[Event "*** Titled Tuesday Blitz"]
[Site "Chess.com"]
[Date "2020.02.04"]
[Round "5"]
[White "AvitalBor"]
[Black "riconaipe"]
[Result "1/2-1/2"]
[WhiteElo "2747"]
[BlackElo "2557"]
[TimeControl "180+2"]
[EndTime "14:08:13 PST"]
[Termination "Game drawn by agreement"]

1. e4 {[%clk 0:03:01.9]} 1... g6 {[%clk 0:02:59.6]} 2. d4 {[%clk 0:03:02.6]}
2... Bg7 {[%clk 0:03:00.7]} 3. c3 {[%clk 0:03:04.2]} 3... d5 {[%clk 0:02:59.8]}
4. Nd2 {[%clk 0:02:55.6]} 4... dxe4 {[%clk 0:02:55.4]} 5. Nxe4 {[%clk
0:02:57.5]} 5... Nf6 {[%clk 0:02:56.8]} 6. Bd3 {[%clk 0:02:55.9]} 6... O-O
{[%clk 0:02:56.8]} 7. Nf3 {[%clk 0:02:55.1]} 7... Nxe4 {[%clk 0:02:57.4]} 8.
Bxe4 {[%clk 0:02:54.4]} 8... c5 {[%clk 0:02:55.5]} 9. dxc5 {[%clk 0:02:49.7]}
9... Qxd1+ {[%clk 0:02:54.5]} 10. Kxd1 {[%clk 0:02:51.6]} 10... f5 {[%clk
0:02:51.5]} 11. Bd5+ {[%clk 0:02:45.7]} 11... e6 {[%clk 0:02:49.7]} 12. Bc4
{[%clk 0:02:38.4]} 12... Na6 {[%clk 0:02:50.1]} 13. Be3 {[%clk 0:02:36]} 13...
Kh8 {[%clk 0:02:45.2]} 14. Bd4 {[%clk 0:02:27.2]} 14... Rd8 {[%clk 0:02:26.2]}
15. Kc2 {[%clk 0:02:18.7]} 15... Bxd4 {[%clk 0:02:26.2]} 16. cxd4 {[%clk
0:02:19]} 16... b6 {[%clk 0:02:25.4]} 17. cxb6 {[%clk 0:01:42.9]} 17... axb6
{[%clk 0:02:26.1]} 18. Rhe1 {[%clk 0:01:38.5]} 18... Bb7 {[%clk 0:02:24.1]} 19.
Rxe6 {[%clk 0:01:36.1]} 19... Bxf3 {[%clk 0:02:20]} 20. gxf3 {[%clk 0:01:37.9]}
20... Rxd4 {[%clk 0:02:21.1]} 21. Bxa6 {[%clk 0:01:26.7]} 21... Rxa6 {[%clk
0:02:20.1]} 22. Rd1 {[%clk 0:01:24.6]} 22... Rxd1 {[%clk 0:02:10.1]} 23. Kxd1
{[%clk 0:01:26.5]} 23... Rxa2 {[%clk 0:02:06.7]} 24. Rxb6 {[%clk 0:01:27.3]}
24... Kg7 {[%clk 0:02:07]} 25. Ke2 {[%clk 0:01:23.8]} 25... Kh6 {[%clk
0:02:04.4]} 26. f4 {[%clk 0:01:24.6]} 26... Kh5 {[%clk 0:02:04.6]} 27. Kf3
{[%clk 0:01:25.3]} 27... Ra1 {[%clk 0:01:57.9]} 28. Rb7 {[%clk 0:01:23.4]} 28...
h6 {[%clk 0:01:57.8]} 29. b4 {[%clk 0:01:21.2]} 29... Ra3+ {[%clk 0:01:58.7]}
30. Kg2 {[%clk 0:01:21.2]} 30... Rb3 {[%clk 0:01:57.1]} 31. Rb6 {[%clk
0:01:17.9]} 31... g5 {[%clk 0:01:53.4]} 32. fxg5 {[%clk 0:01:16.3]} 32... hxg5
{[%clk 0:01:55.3]} 33. h3 {[%clk 0:01:17.3]} 33... g4 {[%clk 0:01:53.6]} 34.
hxg4+ {[%clk 0:01:16.4]} 34... Kxg4 {[%clk 0:01:53.1]} 35. b5 {[%clk 0:01:04.5]}
35... f4 {[%clk 0:01:54.2]} 36. Rb8 {[%clk 0:00:31.1]} 36... Kg5 {[%clk
0:00:40]} 37. b6 {[%clk 0:00:29.6]} 37... Kg6 {[%clk 0:00:40.6]} 38. f3 {[%clk
0:00:12.6]} 38... Kg7 {[%clk 0:00:36.8]} 39. b7 {[%clk 0:00:10.3]} 39... Kh7
{[%clk 0:00:31.2]} 40. Kf2 {[%clk 0:00:09.7]} 40... Rb2+ {[%clk 0:00:30.5]} 41.
Ke1 {[%clk 0:00:10.8]} 41... Kg7 {[%clk 0:00:31.2]} 42. Kd1 {[%clk 0:00:12.1]}
42... Kh7 {[%clk 0:00:31.9]} 43. Kc1 {[%clk 0:00:13.4]} 43... Rb6 {[%clk
0:00:28.2]} 44. Kc2 {[%clk 0:00:14.7]} 44... Kg7 {[%clk 0:00:28.6]} 45. Kc3
{[%clk 0:00:15.1]} 45... Kh7 {[%clk 0:00:28.5]} 46. Kd4 {[%clk 0:00:16.7]} 46...
Rb4+ {[%clk 0:00:27.7]} 47. Kc5 {[%clk 0:00:17.4]} 47... Rb1 {[%clk 0:00:27]}
48. Kd6 {[%clk 0:00:18.7]} 48... Kg7 {[%clk 0:00:24.9]} 49. Ke5 {[%clk
0:00:14.5]} 49... Rb4 {[%clk 0:00:25.9]} 50. Kf5 {[%clk 0:00:15.6]} 50... Kh7
{[%clk 0:00:26.1]} 51. Kg5 {[%clk 0:00:16.8]} 51... Kg7 {[%clk 0:00:26.1]} 52.
Rc8 {[%clk 0:00:18.3]} 52... Rxb7 {[%clk 0:00:19.6]} 53. Kxf4 {[%clk 0:00:19.4]}
53... Rb6 {[%clk 0:00:20.4]} 54. Kg5 {[%clk 0:00:20.7]} 54... Rb5+ {[%clk
0:00:21.3]} 55. Kg4 {[%clk 0:00:20.7]} 55... Rb6 {[%clk 0:00:22.4]} 56. f4
{[%clk 0:00:21.2]} 56... Kf6 {[%clk 0:00:18.9]} 57. Rh8 {[%clk 0:00:21.4]} 57...
Rb1 {[%clk 0:00:19.6]} 58. Rh6+ {[%clk 0:00:21.7]} 58... Kg7 {[%clk 0:00:19.8]}
59. Ra6 {[%clk 0:00:23.6]} 59... Rb5 {[%clk 0:00:19.9]} 60. Kh4 {[%clk
0:00:21.3]} 60... Kf7 {[%clk 0:00:20.8]} 61. Kg4 {[%clk 0:00:22.5]} 61... Kg7
{[%clk 0:00:22]} 62. Re6 {[%clk 0:00:21.1]} 62... Kf7 {[%clk 0:00:22.8]} 63. Rh6
{[%clk 0:00:21.9]} 63... Kg7 {[%clk 0:00:23.8]} 64. Rc6 {[%clk 0:00:22.5]} 64...
Kf7 {[%clk 0:00:24.9]} 65. Kf3 {[%clk 0:00:22.7]} 65... Rb4 {[%clk 0:00:24.2]}
66. Rd6 {[%clk 0:00:23.2]} 66... Kg7 {[%clk 0:00:23.9]} 67. Rd3 {[%clk
0:00:24.7]} 67... Kf6 {[%clk 0:00:23.5]} 68. Kg4 {[%clk 0:00:26]} 68... Rb5
{[%clk 0:00:24.7]} 69. Rd4 {[%clk 0:00:27.2]} 69... Rc5 {[%clk 0:00:22.2]} 70.
Ra4 {[%clk 0:00:28.5]} 70... Rb5 {[%clk 0:00:23]} 71. f5 {[%clk 0:00:26.8]}
71... Rb1 {[%clk 0:00:22.5]} 72. Ra6+ {[%clk 0:00:27.3]} 72... Kf7 {[%clk
0:00:23.8]} 73. Ra7+ {[%clk 0:00:27.4]} 73... Kf6 {[%clk 0:00:24.6]} 74. Ra6+
{[%clk 0:00:28.7]} 74... Kf7 {[%clk 0:00:26.1]} 1/2-1/2

[Event "*** Titled Tuesday Blitz"]
[Site "Chess.com"]
[Date "2020.02.04"]
[Round "5"]
[White "GadimbayliA"]
[Black "Kimster98"]
[Result "1/2-1/2"]
[WhiteElo "2897"]
[BlackElo "2701"]
[TimeControl "180+2"]
[EndTime "14:08:13 PST"]
[Termination "Game drawn - insufficient material"]

1. e4 {[%clk 0:03:01.9]} 1... e5 {[%clk 0:02:59.5]} 2. Nf3 {[%clk 0:03:02.9]}
2... Nf6 {[%clk 0:02:56.5]} 3. Nc3 {[%clk 0:03:03.2]} 3... Nc6 {[%clk 0:02:57]}
4. d4 {[%clk 0:03:03.8]} 4... exd4 {[%clk 0:02:57.9]} 5. Nxd4 {[%clk 0:03:05.7]}
5... Bb4 {[%clk 0:02:59.5]} 6. Nxc6 {[%clk 0:03:07]} 6... bxc6 {[%clk
0:03:01.4]} 7. Bd3 {[%clk 0:03:08.5]} 7... O-O {[%clk 0:03:01.6]} 8. O-O {[%clk
0:03:09.7]} 8... d5 {[%clk 0:03:03.2]} 9. exd5 {[%clk 0:03:11.6]} 9... cxd5
{[%clk 0:03:04.2]} 10. Bg5 {[%clk 0:03:12.3]} 10... c6 {[%clk 0:03:04.9]} 11.
Qf3 {[%clk 0:03:11.6]} 11... h6 {[%clk 0:03:06]} 12. Bxf6 {[%clk 0:03:12.5]}
12... Qxf6 {[%clk 0:03:07.9]} 13. Qxf6 {[%clk 0:03:13.7]} 13... gxf6 {[%clk
0:03:09.8]} 14. Ne2 {[%clk 0:03:15.4]} 14... Bd6 {[%clk 0:03:11.1]} 15. Nd4
{[%clk 0:03:12]} 15... c5 {[%clk 0:03:11.6]} 16. Nf5 {[%clk 0:03:09.7]} 16...
Bxf5 {[%clk 0:03:12.1]} 17. Bxf5 {[%clk 0:03:11.6]} 17... Be5 {[%clk 0:02:44.2]}
18. Rab1 {[%clk 0:03:10.5]} 18... Rab8 {[%clk 0:02:45.7]} 19. b3 {[%clk
0:03:11.8]} 19... Rfd8 {[%clk 0:02:47.1]} 20. Rbd1 {[%clk 0:03:12]} 20... a5
{[%clk 0:02:35.7]} 21. Rd3 {[%clk 0:02:37]} 21... c4 {[%clk 0:02:27.8]} 22. Rh3
{[%clk 0:02:36.6]} 22... Kg7 {[%clk 0:02:22.8]} 23. f4 {[%clk 0:02:09.4]} 23...
Bd4+ {[%clk 0:02:15.6]} 24. Kh1 {[%clk 0:02:10.4]} 24... a4 {[%clk 0:01:47.1]}
25. Rg3+ {[%clk 0:02:00.2]} 25... Kf8 {[%clk 0:01:47.3]} 26. Bh7 {[%clk
0:01:59.1]} 26... Ke7 {[%clk 0:01:19.2]} 27. Rd1 {[%clk 0:01:45]} 27... Bc5
{[%clk 0:01:13.9]} 28. h3 {[%clk 0:01:15.3]} 28... axb3 {[%clk 0:01:14.6]} 29.
axb3 {[%clk 0:01:15.7]} 29... cxb3 {[%clk 0:01:14.5]} 30. cxb3 {[%clk
0:01:17.6]} 30... Rb4 {[%clk 0:01:06.6]} 31. Rf3 {[%clk 0:00:55.6]} 31... Kd6
{[%clk 0:00:57.8]} 32. Rfd3 {[%clk 0:00:33.9]} 32... d4 {[%clk 0:00:41.8]} 33.
Rg3 {[%clk 0:00:29.1]} 33... Re8 {[%clk 0:00:13.5]} 34. Rg7 {[%clk 0:00:26.3]}
34... Rb7 {[%clk 0:00:14.5]} 35. Bd3 {[%clk 0:00:24.6]} 35... Re3 {[%clk
0:00:10.5]} 36. Bc4 {[%clk 0:00:24.3]} 36... Re4 {[%clk 0:00:08.2]} 37. Rf1
{[%clk 0:00:22.1]} 37... Rbe7 {[%clk 0:00:08.9]} 38. g3 {[%clk 0:00:15.6]} 38...
Re1 {[%clk 0:00:09]} 39. Kg2 {[%clk 0:00:16.8]} 39... Rxf1 {[%clk 0:00:07.6]}
40. Kxf1 {[%clk 0:00:18.7]} 40... Bb4 {[%clk 0:00:08]} 41. Rh7 {[%clk
0:00:16.1]} 41... Re3 {[%clk 0:00:08]} 42. Rxh6 {[%clk 0:00:16.1]} 42... Rxg3
{[%clk 0:00:07.5]} 43. Rxf6+ {[%clk 0:00:17.1]} 43... Kc5 {[%clk 0:00:09]} 44.
Rf5+ {[%clk 0:00:17.3]} 44... Kc6 {[%clk 0:00:08.6]} 45. h4 {[%clk 0:00:14.9]}
45... d3 {[%clk 0:00:05.4]} 46. Rf6+ {[%clk 0:00:08.5]} 46... Kc5 {[%clk
0:00:06]} 47. Rf5+ {[%clk 0:00:09.5]} 47... Kd4 {[%clk 0:00:06.7]} 48. Kf2
{[%clk 0:00:10.5]} 48... Rh3 {[%clk 0:00:06.4]} 49. Rd5+ {[%clk 0:00:09.7]}
49... Kc3 {[%clk 0:00:07.8]} 50. Kg2 {[%clk 0:00:09.6]} 50... Re3 {[%clk
0:00:07.6]} 51. Kf2 {[%clk 0:00:09.2]} 51... Rh3 {[%clk 0:00:08.8]} 52. Kg2
{[%clk 0:00:10.4]} 52... Re3 {[%clk 0:00:09.6]} 53. Rxd3+ {[%clk 0:00:03.1]}
53... Rxd3 {[%clk 0:00:10.6]} 54. Bxd3 {[%clk 0:00:05]} 54... Kxd3 {[%clk
0:00:12.5]} 55. Kf3 {[%clk 0:00:06.2]} 55... Kc2 {[%clk 0:00:12]} 56. Ke4 {[%clk
0:00:07.2]} 56... Kxb3 {[%clk 0:00:12.8]} 57. Kf5 {[%clk 0:00:07.8]} 57... Bc3
{[%clk 0:00:13.6]} 58. h5 {[%clk 0:00:08.9]} 58... Kc4 {[%clk 0:00:14.4]} 59.
Kg5 {[%clk 0:00:08.8]} 59... Kd5 {[%clk 0:00:15.5]} 60. f5 {[%clk 0:00:07.3]}
60... Bh8 {[%clk 0:00:14.7]} 61. Kh6 {[%clk 0:00:06.7]} 61... Ke5 {[%clk
0:00:13.2]} 62. Kh7 {[%clk 0:00:08]} 62... Bf6 {[%clk 0:00:08.7]} 63. Kg8 {[%clk
0:00:09.2]} 63... Kxf5 {[%clk 0:00:09.8]} 64. Kxf7 {[%clk 0:00:10.1]} 64... Bd4
{[%clk 0:00:11]} 65. h6 {[%clk 0:00:11.3]} 65... Kg5 {[%clk 0:00:12.5]} 66. h7
{[%clk 0:00:13.2]} 66... Kh6 {[%clk 0:00:13.5]} 67. Kg8 {[%clk 0:00:14.4]} 67...
Kg6 {[%clk 0:00:14.6]} 68. h8=Q {[%clk 0:00:15.3]} 68... Bxh8 {[%clk 0:00:15.8]}
1/2-1/2